fUST/lending_fUST_20250625
["ID","MTS","AMOUNT","RATE_DAILY","PERIOD"]
[367456220,1750803047189,-460.0,0.00016986,2]
[367456222,1750803047199,-460.0,0.00016986,2]
[367456224,1750803047208,-460.0,0.00016986,2]
[367456226,1750803047217,-460.0,0.00016986,2]
[367456228,1750803047227,-460.0,0.00016986,2]
[367456230,1750803047236,-400.0,0.00016986,2]
[367456232,1750803047244,-362.97,0.00016986,2]
[367456234,1750803047254,-460.0,0.00016986,2]
[367456236,1750803047263,-1022.78,0.00016986,2]
[367456238,1750803047272,-454.06,0.00016986,2]
[367456240,1750803047281,-782.12,0.00016986,2]
[367456242,1750803047290,-382.96,0.00016986,2]
[367456244,1750803047300,-181.62,0.00016986,2]
[367456246,1750803047309,-460.0,0.00016986,2]
[367456248,1750803047318,-912.6,0.00016986,2]
[367456250,1750803047327,-460.0,0.00016986,2]
[367456252,1750803047336,-460.0,0.00016986,2]
[367456254,1750803047345,-469.35,0.00016986,2]
[367456256,1750803047354,-2138.80080394,0.00017231,2]
[367456258,1750803047363,-460.0,0.0001726,2]
[367456260,1750803047372,-603.07312552,0.0001726,2]
[367456262,1750803047381,-448.33,0.0001726,2]
[367456264,1750803047390,-460.0,0.0001726,2]
[367456266,1750803047399,-460.0,0.0001726,2]
[367456268,1750803047408,-400.0,0.0001726,2]
[367456270,1750803047417,-193.37290551,0.0001726,2]
[367456272,1750803047430,-167.06294473,0.0001726,2]
[367456274,1750803047439,-293.57708199,0.0001726,2]
[367457185,1750803128772,150.0,0.00020382,30]
[367457186,1750803303819,201.10503909,0.00015945,2]
[367457187,1750803326346,201.9776132,0.00015712,2]
[367457195,1750803496969,522.460784,0.00013699,2]
[367457198,1750803533933,11568.29742315,0.00015846,2]
[367457199,1750803533956,13331.70257685,0.00015846,2]
[367457238,1750804232413,-163.76,0.00016428,3]
[367457240,1750804232422,-320.63370021,0.00016428,3]
[367457242,1750804232434,-170.64629979,0.00016428,3]
[367457244,1750804232444,-300.0,0.00016435,2]
[367457246,1750804232454,-300.0,0.00016435,2]
[367457248,1750804232464,-1200.0,0.00016435,2]
[367457250,1750804232474,-239.7556157,0.00016436,2]
[367457252,1750804232484,-500.0,0.00016436,2]
[367457254,1750804232493,-500.0,0.00016436,2]
[367457256,1750804232504,-500.0,0.00016436,2]
[367457258,1750804232513,-500.0,0.00016436,2]
[367457260,1750804232522,-207.12813962,0.00016436,2]
[367457262,1750804232531,-500.0,0.00016436,2]
[367457263,1750804232540,-500.0,0.00016436,2]
[367457265,1750804232549,-500.0,0.00016436,2]
[367457267,1750804232559,-500.0,0.00016436,2]
[367457269,1750804232568,-157.72605902,0.00016436,2]
[367457272,1750804232577,-500.0,0.00016437,2]
[367457274,1750804232586,-500.0,0.00016437,2]
[367457277,1750804232595,-500.0,0.00016437,2]
[367457279,1750804232604,-650.0,0.00016437,2]
[367457281,1750804232613,-500.0,0.00016437,2]
[367457282,1750804232623,-500.0,0.00016437,2]
[367457284,1750804232632,-500.0,0.00016437,2]
[367457286,1750804232642,-500.0,0.00016437,2]
[367457288,1750804232652,-500.0,0.00016437,2]
[367457290,1750804232661,-500.0,0.00016437,2]
[367457292,1750804232671,-500.0,0.00016437,2]
[367457294,1750804232680,-500.0,0.00016437,2]
[367457296,1750804232689,-500.0,0.00016437,2]
[367457298,1750804232699,-500.0,0.00016437,2]
[367457300,1750804232709,-500.0,0.00016437,2]
[367457302,1750804232718,-500.0,0.00016437,2]
[367457304,1750804232727,-218.24706098,0.00016437,2]
[367457306,1750804232736,-500.0,0.00016437,2]
[367457308,1750804232745,-500.0,0.00016437,2]
[367457310,1750804232754,-500.0,0.00016437,2]
[367457312,1750804232763,-500.0,0.00016437,2]
[367457314,1750804232772,-500.0,0.00016437,2]
[367457316,1750804232781,-500.0,0.00016437,2]
[367457318,1750804232791,-460.0,0.00016438,2]
[367457320,1750804232799,-460.0,0.00016438,2]
[367457322,1750804232809,-150.06763191,0.00016438,2]
[367457324,1750804232818,-515.4295518,0.00016438,2]
[367457326,1750804232828,-461.35550244,0.00016438,2]
[367457328,1750804232837,-460.54260073,0.00016438,2]
[367457330,1750804232846,-460.0,0.00016438,2]
[367457332,1750804232855,-381.47508225,0.00016438,2]
[367457334,1750804232863,-430.0,0.00016438,2]
[367457336,1750804232872,-177.58599281,0.00016438,2]
[367457338,1750804232881,-460.0,0.00016438,2]
[367457340,1750804232889,-460.0,0.00016438,2]
[367457341,1750804232898,-460.0,0.00016438,2]
[367457344,1750804232908,-460.0,0.00016438,2]
[367457345,1750804232917,-460.0,0.00016438,2]
[367457347,1750804232925,-58.49974531,0.00016438,2]
[367457350,1750804232942,-401.50025469,0.00016438,2]
[367457352,1750804232952,-460.0,0.00016438,2]
[367457354,1750804232961,-89.90869085,0.00016438,2]
[367457357,1750804232973,-370.09130915,0.00016438,2]
[367457359,1750804232982,-460.0,0.00016438,2]
[367457360,1750804232991,-460.0,0.00016438,2]
[367457362,1750804233000,-460.0,0.00016438,2]
[367457365,1750804233009,-460.0,0.00016438,2]
[367457367,1750804233019,-582.10853998,0.00016438,2]
[367457369,1750804233028,-235.07568213,0.00016438,2]
[367457371,1750804233040,-201.77526202,0.00016438,2]
[367457373,1750804233049,-460.0,0.00016438,2]
[367457375,1750804233058,-460.0,0.00016438,2]
[367457377,1750804233068,-460.0,0.00016438,2]
[367457379,1750804233077,-460.0,0.00016438,2]
[367457381,1750804233087,-460.0,0.00016438,2]
[367457383,1750804233096,-6.46234533,0.00016438,2]
[367457696,1750804238462,-453.53765467,0.00016438,2]
[367457698,1750804238472,-460.0,0.00016438,2]
[367457700,1750804238482,-460.0,0.00016438,2]
[367457702,1750804238491,-460.0,0.00016438,2]
[367457704,1750804238501,-453.14214551,0.00016438,2]
[367457707,1750804238510,-460.0,0.00016438,2]
[367457709,1750804238519,-430.0,0.00016438,2]
[367457711,1750804238529,-460.0,0.00016438,2]
[367457712,1750804238538,-460.0,0.00016438,2]
[367457714,1750804238547,-460.0,0.00016438,2]
[367457716,1750804238556,-461.99404136,0.00016438,2]
[367457718,1750804238565,-460.0,0.00016438,2]
[367457720,1750804238575,-337.33769466,0.00016438,2]
[367457722,1750804238584,-460.0,0.00016438,2]
[367457724,1750804238594,-569.92451661,0.00016438,2]
[367457727,1750804238606,-435.64755293,0.00016438,2]
[367457729,1750804238615,-460.0,0.00016438,2]
[367457731,1750804238625,-460.0,0.00016438,2]
[367457733,1750804238634,-432.07155061,0.00016438,2]
[367457735,1750804238643,-460.0,0.00016438,2]
[367457737,1750804238653,-460.0,0.00016438,2]
[367457739,1750804238663,-400.0,0.00016438,2]
[367457741,1750804238672,-400.0,0.00016438,2]
[367457743,1750804238681,-460.0,0.00016438,2]
[367457745,1750804238691,-460.0,0.00016438,2]
[367457747,1750804238700,-519.49324381,0.00016438,2]
[367457749,1750804238710,-460.0,0.00016438,2]
[367457752,1750804238720,-460.0,0.00016438,2]
[367457754,1750804238729,-460.0,0.00016438,2]
[367457756,1750804238738,-460.0,0.00016438,2]
[367457758,1750804238748,-460.0,0.00016438,2]
[367457760,1750804238757,-320.897502,0.00016438,2]
[367457762,1750804238767,-400.92573595,0.00016438,2]
[367457764,1750804238777,-460.0,0.00016438,2]
[367457766,1750804238786,-460.0,0.00016438,2]
[367457768,1750804238795,-460.0,0.00016438,2]
[367457770,1750804238804,-460.0,0.00016438,2]
[367457772,1750804238814,-463.24320802,0.00016438,2]
[367457774,1750804238823,-460.0,0.00016438,2]
[367457776,1750804238831,-460.0,0.00016438,2]
[367457778,1750804238841,-460.0,0.00016438,2]
[367457780,1750804238850,-374.15566583,0.00016438,2]
[367457782,1750804238860,-460.0,0.00016438,2]
[367457784,1750804238869,-460.0,0.00016438,2]
[367457786,1750804238878,-400.0,0.00016438,2]
[367457788,1750804238888,-460.0,0.00016438,2]
[367457790,1750804238897,-460.0,0.00016438,2]
[367457792,1750804238907,-460.0,0.00016438,2]
[367457794,1750804238916,-407.52784519,0.00016438,2]
[367457795,1750804238925,-302.77446442,0.00016438,2]
[367457797,1750804238934,-460.0,0.00016438,2]
[367457799,1750804238944,-460.0,0.00016438,2]
[367457801,1750804238953,-460.0,0.00016438,2]
[367457803,1750804238963,-460.0,0.00016438,2]
[367457806,1750804238973,-460.0,0.00016438,2]
[367457807,1750804238982,-460.0,0.00016438,2]
[367457809,1750804238992,-460.0,0.00016438,2]
[367457810,1750804239001,-460.0,0.00016438,2]
[367457811,1750804239010,-460.0,0.00016438,2]
[367457812,1750804239019,-460.52492398,0.00016438,2]
[367457813,1750804239028,-460.0,0.00016438,2]
[367457814,1750804239038,-460.0,0.00016438,2]
[367457815,1750804239047,-460.0,0.00016438,2]
[367457816,1750804239058,-460.0,0.00016438,2]
[367457817,1750804239067,-460.0,0.00016438,2]
[367457818,1750804239077,-460.0,0.00016438,2]
[367457819,1750804239086,-460.0,0.00016438,2]
[367457820,1750804239095,-458.81128959,0.00016438,2]
[367457821,1750804239104,-500.0,0.00016438,2]
[367457822,1750804239114,-500.0,0.00016438,2]
[367457823,1750804239127,-500.0,0.00016438,2]
[367457824,1750804239137,-500.0,0.00016438,2]
[367457825,1750804239145,-460.0,0.00016438,2]
[367457826,1750804239155,-460.0,0.00016438,2]
[367457827,1750804239165,-460.0,0.00016438,2]
[367457828,1750804239174,-460.0,0.00016438,2]
[367457829,1750804239183,-461.47826145,0.00016438,2]
[367457830,1750804239192,-432.97271329,0.00016438,2]
[367457831,1750804239201,-460.0,0.00016438,2]
[367457832,1750804239211,-460.0,0.00016438,2]
[367457833,1750804239221,-460.0,0.00016438,2]
[367457834,1750804239231,-460.0,0.00016438,2]
[367457835,1750804239240,-460.0,0.00016438,2]
[367457836,1750804239249,-460.0,0.00016438,2]
[367457837,1750804239259,-460.0,0.00016438,2]
[367457838,1750804239268,-460.0,0.00016438,2]
[367457839,1750804239277,-460.0,0.00016438,2]
[367457840,1750804239287,-460.0,0.00016438,2]
[367457841,1750804239296,-460.0,0.00016438,2]
[367457842,1750804239306,-460.0,0.00016438,2]
[367457843,1750804239315,-460.0,0.00016438,2]
[367457844,1750804239324,-460.0,0.00016438,2]
[367457845,1750804239334,-460.0,0.00016438,2]
[367457846,1750804239344,-460.0,0.00016438,2]
[367457847,1750804239354,-228.52,0.00016438,2]
[367457848,1750804239363,-460.0,0.00016438,2]
[367457849,1750804239372,-327.7841555,0.00016438,2]
[367457851,1750804239381,-460.0,0.00016438,2]
[367457853,1750804239391,-460.0,0.00016438,2]
[367457855,1750804239401,-460.0,0.00016438,2]
[367457857,1750804239410,-460.0,0.00016438,2]
[367457859,1750804239419,-460.0,0.00016438,2]
[367457861,1750804239428,-460.0,0.00016438,2]
[367457863,1750804239438,-460.0,0.00016438,2]
[367457865,1750804239447,-460.0,0.00016438,2]
[367457867,1750804239457,-460.0,0.00016438,2]
[367457869,1750804239466,-460.0,0.00016438,2]
[367457871,1750804239475,-460.0,0.00016438,2]
[367457873,1750804239485,-460.0,0.00016438,2]
[367457875,1750804239494,-460.0,0.00016438,2]
[367457877,1750804239503,-460.0,0.00016438,2]
[367457879,1750804239511,-460.0,0.00016438,2]
[367457881,1750804239521,-190.84577573,0.00016438,2]
[367457883,1750804239530,-460.0,0.00016438,2]
[367457885,1750804239540,-460.0,0.00016438,2]
[367457887,1750804239548,-460.0,0.00016438,2]
[367457889,1750804239557,-460.0,0.00016438,2]
[367457891,1750804239566,-460.0,0.00016438,2]
[367457893,1750804239575,-460.0,0.00016438,2]
[367457895,1750804239584,-460.0,0.00016438,2]
[367457897,1750804239593,-460.0,0.00016438,2]
[367457899,1750804239603,-460.90932806,0.00016438,2]
[367457900,1750804239612,-460.0,0.00016438,2]
[367457901,1750804239621,-349.67968111,0.00016438,2]
[367457902,1750804239630,-460.0,0.00016438,2]
[367457903,1750804239639,-460.0,0.00016438,2]
[367457904,1750804239648,-191.58917147,0.00016438,2]
[367457905,1750804239657,-460.0,0.00016438,2]
[367457906,1750804239666,-460.0,0.00016438,2]
[367457907,1750804239675,-165.87209766,0.00016438,2]
[367457908,1750804239684,-460.0,0.00016438,2]
[367457909,1750804239693,-460.0,0.00016438,2]
[367457910,1750804239702,-460.0,0.00016438,2]
[367457911,1750804239711,-460.0,0.00016438,2]
[367457912,1750804239720,-358.96505236,0.00016438,2]
[367457913,1750804239730,-596.46220538,0.00016438,2]
[367457914,1750804239739,-460.0,0.00016438,2]
[367457915,1750804239748,-460.0,0.00016438,2]
[367457916,1750804239757,-460.0,0.00016438,2]
[367457917,1750804239767,-460.0,0.00016438,2]
[367457918,1750804239776,-460.0,0.00016438,2]
[367457919,1750804239785,-229.42541191,0.00016438,2]
[367457920,1750804239794,-460.0,0.00016438,2]
[367457921,1750804239803,-460.0,0.00016438,2]
[367457922,1750804239812,-460.0,0.00016438,2]
[367457923,1750804239821,-460.0,0.00016438,2]
[367457924,1750804239830,-460.0,0.00016438,2]
[367457925,1750804239839,-460.0,0.00016438,2]
[367457926,1750804239849,-460.0,0.00016438,2]
[367457927,1750804239858,-460.0,0.00016438,2]
[367457928,1750804239867,-460.0,0.00016438,2]
[367457929,1750804239876,-460.0,0.00016438,2]
[367457931,1750804239885,-460.0,0.00016438,2]
[367457932,1750804239894,-460.0,0.00016438,2]
[367457933,1750804239903,-460.0,0.00016438,2]
[367457934,1750804239912,-460.0,0.00016438,2]
[367457935,1750804239921,-460.0,0.00016438,2]
[367457936,1750804239930,-460.0,0.00016438,2]
[367457937,1750804239939,-460.0,0.00016438,2]
[367457938,1750804239948,-440.32976706,0.00016438,2]
[367457939,1750804239963,-280.85,0.00016438,2]
[367457940,1750804239977,-605.43,0.00016438,2]
[367457941,1750804239986,-401.10544024,0.00016438,2]
[367457942,1750804239995,-460.0,0.00016438,2]
[367457943,1750804240004,-460.0,0.00016438,2]
[367457944,1750804240014,-460.0,0.00016438,2]
[367457945,1750804240023,-495.51094669,0.00016438,2]
[367457946,1750804240050,-422.97905331,0.00016438,2]
[367457947,1750804240059,-77.02094669,0.00016438,2]
[367457948,1750804240072,-382.97905331,0.00016438,2]
[367457950,1750804240082,-460.0,0.00016438,2]
[367457951,1750804240091,-460.0,0.00016438,2]
[367457952,1750804240100,-460.0,0.00016438,2]
[367457953,1750804240109,-460.0,0.00016438,2]
[367457954,1750804240122,-277.84838159,0.00016438,2]
[367457955,1750804240133,-182.15161841,0.00016438,2]
[367457956,1750804240143,-460.69,0.00016438,2]
[367457957,1750804240152,-460.0,0.00016438,2]
[367457958,1750804240163,-460.0,0.00016438,2]
[367457959,1750804240172,-460.0,0.00016438,2]
[367457960,1750804240182,-460.0,0.00016438,2]
[367457961,1750804240192,-460.0,0.00016438,2]
[367457962,1750804240203,-243.50396216,0.00016438,2]
[367457963,1750804240213,-460.0,0.00016438,2]
[367457964,1750804240222,-248.07082414,0.00016438,2]
[367457994,1750804243529,-163.6760077,0.00016338,2]
[367457995,1750804243539,-211.92917586,0.00016438,2]
[367457996,1750804243548,-460.0,0.00016438,2]
[367457997,1750804243557,-460.0,0.00016438,2]
[367457998,1750804243567,-460.0,0.00016438,2]
[367457999,1750804243576,-460.0,0.00016438,2]
[367458000,1750804243586,-460.0,0.00016438,2]
[367458001,1750804243594,-460.0,0.00016438,2]
[367458002,1750804243603,-460.0,0.00016438,2]
[367458003,1750804243613,-460.0,0.00016438,2]
[367458004,1750804243622,-460.0,0.00016438,2]
[367458005,1750804243631,-460.0,0.00016438,2]
[367458006,1750804243640,-460.0,0.00016438,2]
[367458007,1750804243649,-377.59922564,0.00016438,2]
[367458030,1750804246557,-82.40077436,0.00016438,2]
[367458032,1750804246566,-158.83148162,0.00016438,2]
[367458034,1750804246575,-513.17,0.00016438,2]
[367458036,1750804246585,-195.86171913,0.00016438,2]
[367458046,1750804246672,-264.13828087,0.00016438,2]
[367458048,1750804246681,-258.69547043,0.00016438,2]
[367458427,1750804504911,496.337744,0.00013699,2]
[367458429,1750804644823,3900.5,0.00024658,120]
[367458431,1750804684410,2856.88,0.00024658,120]
[367458435,1750804734961,6171.95967915,0.00015753,2]
[367458436,1750804734984,18728.04032085,0.00015753,2]
[367458458,1750804808735,511.0,0.000161,2]
[367458522,1750805432664,-163.67600769,0.00016337,2]
[367458524,1750805432673,-160.0,0.0001641,2]
[367458526,1750805432683,-300.0,0.00016427,2]
[367458528,1750805432692,-660.73020948,0.00016427,2]
[367458530,1750805432704,-539.26979052,0.00016427,2]
[367458532,1750805432714,-269.72,0.00016428,3]
[367458534,1750805432723,-2241.22,0.00016428,3]
[367458536,1750805432733,-1120.61,0.00016428,3]
[367458538,1750805432742,-560.31,0.00016428,3]
[367458540,1750805432753,-280.15,0.00016428,3]
[367458542,1750805432766,-840.49,0.00016428,3]
[367458544,1750805432775,-151.0,0.00016428,2]
[367458546,1750805432786,-151.0,0.00016428,2]
[367458548,1750805432795,-259.35971808,0.00016428,2]
[367458550,1750805432806,-156.587,0.00016428,2]
[367458552,1750805432815,-16663.54609409,0.00016436,2]
[367458555,1750805432834,-25023.34186535,0.00016436,2]
[367458628,1750805438656,-407.50811522,0.00016436,2]
[367458630,1750805438669,-380.0,0.00016436,2]
[367458632,1750805438680,-7525.60392534,0.00016436,2]
[367458634,1750805438690,-295.30289545,0.00016436,2]
[367458636,1750805438699,-500.0,0.00016436,2]
[367458638,1750805438709,-353.7245542,0.00016436,2]
[367458640,1750805438718,-500.0,0.00016436,2]
[367458642,1750805438728,-500.0,0.00016436,2]
[367458644,1750805438738,-500.0,0.00016436,2]
[367458646,1750805438747,-500.0,0.00016436,2]
[367458648,1750805438760,-493.48440354,0.00016436,2]
[367458650,1750805438769,-500.0,0.00016436,2]
[367458652,1750805438779,-500.0,0.00016436,2]
[367458654,1750805438789,-551.5069079,0.00016436,2]
[367458656,1750805438799,-300.0,0.00016436,2]
[367458658,1750805438808,-762.98052605,0.00016437,2]
[367458660,1750805438818,-762.98052605,0.00016437,2]
[367458662,1750805438827,-762.98052605,0.00016437,2]
[367458664,1750805438836,-366.68000692,0.00016437,2]
[367458667,1750805438864,-396.30051913,0.00016437,2]
[367458669,1750805438873,-762.98052605,0.00016437,2]
[367458671,1750805438882,-762.98052605,0.00016437,2]
[367458693,1750805439083,-762.98052605,0.00016437,2]
[367458695,1750805439093,-762.98052605,0.00016437,2]
[367458697,1750805439103,-157.9651217,0.00016437,2]
[367458699,1750805439112,-155.396,0.00016437,2]
[367458701,1750805439121,-460.0,0.00016438,2]
[367458703,1750805439131,-460.0,0.00016438,2]
[367458705,1750805439140,-460.0,0.00016438,2]
[367458707,1750805439149,-460.0,0.00016438,2]
[367458708,1750805439158,-460.0,0.00016438,2]
[367458709,1750805439167,-460.0,0.00016438,2]
[367458710,1750805439176,-205.93978856,0.00016438,2]
[367458711,1750805439185,-566.48076331,0.00016438,2]
[367458712,1750805439194,-437.27653967,0.00016438,2]
[367458713,1750805439204,-460.0,0.00016438,2]
[367458714,1750805439213,-460.0,0.00016438,2]
[367458716,1750805439222,-460.0,0.00016438,2]
[367458718,1750805439232,-460.0,0.00016438,2]
[367458720,1750805439241,-460.90281078,0.00016438,2]
[367458722,1750805439250,-460.0,0.00016438,2]
[367458725,1750805439260,-460.0,0.00016438,2]
[367458727,1750805439270,-460.0,0.00016438,2]
[367458729,1750805439280,-198.50818203,0.00016438,2]
[367458731,1750805439291,-460.0,0.00016438,2]
[367458732,1750805439301,-460.0,0.00016438,2]
[367458735,1750805439310,-422.22626895,0.00016438,2]
[367458737,1750805439319,-460.49786418,0.00016438,2]
[367458739,1750805439329,-460.0,0.00016438,2]
[367458741,1750805439338,-460.0,0.00016438,2]
[367458742,1750805439347,-465.90377688,0.00016438,2]
[367458744,1750805439356,-460.0,0.00016438,2]
[367458747,1750805439366,-460.0,0.00016438,2]
[367458749,1750805439379,-460.0,0.00016438,2]
[367458751,1750805439393,-460.0,0.00016438,2]
[367458752,1750805439402,-460.0,0.00016438,2]
[367458754,1750805439411,-460.0,0.00016438,2]
[367458756,1750805439421,-460.0,0.00016438,2]
[367458758,1750805439430,-460.0,0.00016438,2]
[367458761,1750805439439,-461.29169778,0.00016438,2]
[367458763,1750805439449,-460.0,0.00016438,2]
[367458764,1750805439458,-440.0,0.00016438,2]
[367458767,1750805439468,-460.0,0.00016438,2]
[367458769,1750805439477,-460.0,0.00016438,2]
[367458771,1750805439486,-460.0,0.00016438,2]
[367458773,1750805439495,-460.0,0.00016438,2]
[367458775,1750805439504,-460.86255162,0.00016438,2]
[367458777,1750805439513,-460.0,0.00016438,2]
[367458779,1750805439522,-460.0,0.00016438,2]
[367458781,1750805439532,-460.0,0.00016438,2]
[367458783,1750805439541,-460.0,0.00016438,2]
[367458784,1750805439550,-400.0,0.00016438,2]
[367458786,1750805439559,-460.0,0.00016438,2]
[367458788,1750805439568,-460.0,0.00016438,2]
[367458790,1750805439577,-460.0,0.00016438,2]
[367458792,1750805439586,-460.0,0.00016438,2]
[367458794,1750805439595,-460.0,0.00016438,2]
[367458796,1750805439604,-460.0,0.00016438,2]
[367458798,1750805439614,-460.0,0.00016438,2]
[367458800,1750805439623,-460.0,0.00016438,2]
[367458802,1750805439632,-460.0,0.00016438,2]
[367458804,1750805439641,-403.15858113,0.00016438,2]
[367458806,1750805439650,-460.0,0.00016438,2]
[367458808,1750805439659,-460.0,0.00016438,2]
[367458810,1750805439668,-460.0,0.00016438,2]
[367458812,1750805439677,-460.0,0.00016438,2]
[367458814,1750805439689,-460.0,0.00016438,2]
[367458816,1750805439698,-460.0,0.00016438,2]
[367458818,1750805439708,-460.0,0.00016438,2]
[367458820,1750805439716,-460.0,0.00016438,2]
[367458822,1750805439725,-460.0,0.00016438,2]
[367458824,1750805439734,-460.0,0.00016438,2]
[367458826,1750805439744,-460.0,0.00016438,2]
[367458828,1750805439756,-346.52855423,0.00016438,2]
[367458830,1750805439767,-460.0,0.00016438,2]
[367458832,1750805439777,-460.0,0.00016438,2]
[367458834,1750805439786,-460.0,0.00016438,2]
[367458836,1750805439796,-460.0,0.00016438,2]
[367458838,1750805439806,-460.0,0.00016438,2]
[367458840,1750805439815,-460.0,0.00016438,2]
[367458842,1750805439825,-461.31065203,0.00016438,2]
[367458844,1750805439835,-486.62933843,0.00016438,2]
[367458846,1750805439845,-460.11583239,0.00016438,2]
[367458848,1750805439854,-432.54659941,0.00016438,2]
[367458850,1750805439863,-352.74746823,0.00016438,2]
[367458852,1750805439873,-460.0,0.00016438,2]
[367458854,1750805439883,-460.0,0.00016438,2]
[367458856,1750805439892,-460.0,0.00016438,2]
[367458858,1750805439901,-460.0,0.00016438,2]
[367458860,1750805439910,-460.0,0.00016438,2]
[367458862,1750805439920,-221.08437545,0.00016438,2]
[367458864,1750805439930,-460.0,0.00016438,2]
[367458866,1750805439939,-500.0,0.00016438,2]
[367458868,1750805439948,-392.32,0.00016438,2]
[367458870,1750805439957,-460.0,0.00016438,2]
[367458872,1750805439966,-460.0,0.00016438,2]
[367458874,1750805439975,-460.0,0.00016438,2]
[367458877,1750805439984,-460.0,0.00016438,2]
[367458878,1750805439994,-460.0,0.00016438,2]
[367458881,1750805440004,-460.0,0.00016438,2]
[367458883,1750805440013,-457.80282122,0.00016438,2]
[367458885,1750805440023,-460.0,0.00016438,2]
[367458887,1750805440033,-460.0,0.00016438,2]
[367458888,1750805440042,-460.0,0.00016438,2]
[367458890,1750805440051,-412.23047144,0.00016438,2]
[367458892,1750805440060,-460.0,0.00016438,2]
[367458895,1750805440070,-460.0,0.00016438,2]
[367458897,1750805440079,-459.11867623,0.00016438,2]
[367458899,1750805440088,-545.78860857,0.00016438,2]
[367458901,1750805440098,-460.0,0.00016438,2]
[367458903,1750805440106,-460.0,0.00016438,2]
[367458905,1750805440116,-460.0,0.00016438,2]
[367458907,1750805440125,-461.98026201,0.00016438,2]
[367458908,1750805440134,-460.0,0.00016438,2]
[367458911,1750805440143,-460.0,0.00016438,2]
[367458913,1750805440152,-460.0,0.00016438,2]
[367458915,1750805440161,-460.0,0.00016438,2]
[367458917,1750805440171,-460.0,0.00016438,2]
[367458919,1750805440180,-460.85701846,0.00016438,2]
[367458921,1750805440189,-460.0,0.00016438,2]
[367458922,1750805440198,-460.0,0.00016438,2]
[367458925,1750805440207,-460.0,0.00016438,2]
[367458927,1750805440216,-460.0,0.00016438,2]
[367458929,1750805440225,-460.0,0.00016438,2]
[367458931,1750805440234,-460.0,0.00016438,2]
[367458933,1750805440243,-460.0,0.00016438,2]
[367458935,1750805440253,-460.0,0.00016438,2]
[367458937,1750805440261,-460.0,0.00016438,2]
[367458939,1750805440270,-460.0,0.00016438,2]
[367458941,1750805440279,-460.0,0.00016438,2]
[367458943,1750805440289,-460.0,0.00016438,2]
[367458945,1750805440298,-460.0,0.00016438,2]
[367458947,1750805440307,-460.0,0.00016438,2]
[367458950,1750805440318,-460.0,0.00016438,2]
[367458952,1750805440327,-460.0,0.00016438,2]
[367458954,1750805440336,-460.0,0.00016438,2]
[367458956,1750805440347,-460.0,0.00016438,2]
[367458957,1750805440357,-460.0,0.00016438,2]
[367458959,1750805440366,-460.0,0.00016438,2]
[367458962,1750805440377,-460.0,0.00016438,2]
[367458963,1750805440385,-266.62724688,0.00016438,2]
[367458966,1750805440395,-460.0,0.00016438,2]
[367458968,1750805440404,-460.0,0.00016438,2]
[367458969,1750805440415,-460.0,0.00016438,2]
[367458972,1750805440424,-500.0,0.00016438,2]